bitfinex/quotes_BTCUSD_20240728
["timestamp","ask_amount","ask_price","bid_price","bid_amount"]
[1722190730016,0.0312809,68207.0,68206.0,2.5680248]
[1722190730236,0.0312809,68207.0,68206.0,2.5700248]
[1722190730990,0.0312809,68207.0,68206.0,2.5840248]
[1722190732410,0.0312809,68207.0,68206.0,2.5840177]
[1722190732743,0.0312809,68207.0,68206.0,2.46217688]
[1722190732951,0.0312809,68207.0,68206.0,2.58401738]
[1722190733179,0.0312809,68207.0,68206.0,2.71041738]
[1722190736112,0.00827,68217.0,68216.0,0.48070124]
[1722190736277,0.00827,68217.0,68216.0,2.73869941]
[1722190736483,0.00827,68217.0,68216.0,3.61834992]
[1722190736705,0.00827,68217.0,68216.0,3.85289892]
[1722190737305,0.00827,68217.0,68216.0,3.86689892]
[1722190737555,0.00827,68217.0,68216.0,3.88089892]
[1722190738103,0.00017691,68242.0,68216.0,3.88089892]
[1722190738104,0.00017691,68242.0,68223.0,0.58890124]
[1722190738323,0.00017691,68242.0,68223.0,2.01501926]
[1722190738546,0.00017691,68242.0,68223.0,2.80925752]
[1722190738731,0.00017691,68242.0,68238.0,1.32389624]
[1722190738865,0.00017691,68242.0,68238.0,2.50946188]
[1722190739069,0.00017691,68242.0,68238.0,2.96567383]
[1722190739287,0.00017691,68242.0,68238.0,2.73120083]
[1722190739701,0.00017691,68242.0,68238.0,2.52040083]
[1722190739896,0.00017691,68242.0,68238.0,2.54350382]
[1722190740112,0.00017691,68242.0,68238.0,2.76830382]
[1722190740315,0.00017691,68242.0,68238.0,2.78230382]
[1722190740458,0.00017691,68242.0,68238.0,2.76830382]
[1722190740919,0.00017691,68242.0,68238.0,2.13128082]
[1722190741071,0.00017691,68242.0,68238.0,1.23774988]
[1722190741958,0.00017691,68242.0,68238.0,1.07349031]
[1722190742194,0.00017691,68242.0,68238.0,1.28769988]
[1722190742374,0.00017691,68242.0,68238.0,1.33633908]
[1722190742721,0.00017691,68242.0,68238.0,1.08749031]
[1722190743284,0.00017691,68242.0,68238.0,0.63254431]
[1722190743458,0.0619,68241.0,68238.0,0.63254431]
[1722190743662,0.0619,68241.0,68238.0,0.86701731]
[1722190743887,0.00017691,68242.0,68238.0,0.86701731]
[1722190743888,0.00017691,68242.0,68238.0,1.06722688]
[1722190744086,0.00017691,68242.0,68238.0,1.25174988]
[1722190745244,0.00017691,68242.0,68238.0,1.22374988]
[1722190745451,0.00017691,68242.0,68238.0,1.23774988]
[1722190745603,0.00017691,68242.0,68238.0,1.22374988]
[1722190746009,0.00017691,68242.0,68238.0,1.30169988]
[1722190746199,0.00017691,68242.0,68238.0,1.36819988]
[1722190746399,0.00017691,68242.0,68238.0,1.73910267]
[1722190746594,0.00017691,68242.0,68238.0,1.98910267]
[1722190746846,0.00017691,68242.0,68238.0,1.79716134]
[1722190747086,0.00017691,68242.0,68238.0,1.84580054]
[1722190747521,0.00017691,68242.0,68238.0,2.09580054]
[1722190747726,0.00017691,68242.0,68238.0,1.84580054]
[1722190748250,0.00017691,68242.0,68238.0,2.06780054]
[1722190748499,0.00017691,68242.0,68238.0,1.83180054]
[1722190748788,0.00017691,68242.0,68238.0,1.84580054]
[1722190749019,0.00017691,68242.0,68238.0,1.81780054]
[1722190749221,0.00017691,68242.0,68238.0,1.78316134]
[1722190749428,0.00017691,68242.0,68238.0,1.79716134]
[1722190751985,0.00017691,68242.0,68238.0,1.6964701]
[1722190752157,0.00017691,68242.0,68238.0,1.56152288]
[1722190752330,0.00017691,68242.0,68238.0,1.48622288]
[1722190752511,0.00017691,68242.0,68238.0,1.53617288]
[1722190753952,0.00017691,68242.0,68238.0,1.5274573]
[1722190754153,0.00017691,68242.0,68238.0,1.48622288]
[1722190755989,0.00017691,68242.0,68238.0,1.07838732]
[1722190756373,0.00017691,68242.0,68238.0,1.22864689]
[1722190756576,0.00017691,68242.0,68238.0,1.27859689]
[1722190756995,0.00017691,68242.0,68238.0,1.51306989]
[1722190757222,0.00017691,68242.0,68238.0,1.27859689]
[1722190757422,0.00017691,68242.0,68238.0,1.40645658]
[1722190758746,0.00017691,68242.0,68238.0,1.47035658]
[1722190759070,0.00017691,68242.0,68238.0,1.70482958]
[1722190762330,0.00017691,68242.0,68238.0,1.60413834]
[1722190762530,0.00017691,68242.0,68238.0,1.70482958]
[1722190763892,0.00017691,68242.0,68238.0,1.40645658]
[1722190764098,0.00017691,68242.0,68238.0,1.22864689]
[1722190764320,0.00017691,68242.0,68238.0,1.07838732]
[1722190764321,0.0622,68241.0,68238.0,1.07838732]
[1722190765179,0.00017691,68242.0,68238.0,1.07838732]
[1722190766377,0.00284,68239.0,68238.0,1.07838732]
[1722190767003,0.00284,68239.0,68238.0,1.51306989]
[1722190774054,0.00284,68239.0,68238.0,1.65426989]
[1722190774232,0.00284,68239.0,68238.0,1.80452946]
[1722190775366,0.00284,68239.0,68238.0,1.88882946]
[1722190775669,0.00284,68239.0,68238.0,1.93746866]
[1722190776379,0.00284,68239.0,68238.0,1.88882946]
[1722190776789,1.691e-05,68249.0,68248.0,0.92122724]
[1722190776923,1.691e-05,68249.0,68248.0,1.14477996]
[1722190777121,1.691e-05,68249.0,68248.0,1.15062814]
[1722190778085,1.691e-05,68249.0,68248.0,1.16462814]
[1722190779055,1.691e-05,68249.0,68248.0,1.70452671]
[1722190779325,1.691e-05,68249.0,68248.0,1.75316591]
[1722190780845,1.691e-05,68249.0,68248.0,1.65247467]
[1722190781047,1.691e-05,68249.0,68248.0,1.75316591]
[1722190781244,1.691e-05,68249.0,68248.0,1.65247467]
[1722190782113,1.98,68253.0,68250.0,0.234431]
[1722190782259,1.98,68253.0,68252.0,0.435937]
[1722190782456,1.98,68253.0,68252.0,1.004787]
[1722190782659,1.98,68253.0,68252.0,1.03361011]
[1722190783447,1.98,68253.0,68252.0,1.14830135]
[1722190784182,1.98,68253.0,68252.0,1.04761011]
[1722190784569,1.98,68253.0,68252.0,1.06161011]
[1722190784995,1.98,68253.0,68252.0,1.16230135]
[1722190785915,1.98,68253.0,68252.0,1.06161011]
[1722190786115,1.98,68253.0,68252.0,1.16230135]
[1722190786377,1.98,68253.0,68252.0,1.06161011]
[1722190786590,1.98,68253.0,68252.0,1.16230135]
[1722190786921,1.98,68253.0,68252.0,1.06161011]
[1722190787121,1.98,68253.0,68252.0,1.88839549]
[1722190787366,0.01026,68269.0,68263.0,1.07486824]
[1722190787543,0.01026,68269.0,68268.0,1.44015624]
[1722190787744,0.00330915,68276.0,68275.0,1.15216024]
[1722190788019,1.5e-07,68276.0,68275.0,1.89212505]
[1722190788266,4e-07,68279.0,68278.0,0.50264124]
[1722190788453,0.0153289,68287.0,68286.0,1.75587924]
[1722190788660,9e-07,68287.0,68286.0,2.85855247]
[1722190788860,9e-07,68287.0,68286.0,2.86301927]
[1722190788990,9e-07,68287.0,68286.0,2.49132161]
[1722190789203,9e-07,68287.0,68286.0,2.34878821]
[1722190789391,9e-07,68287.0,68286.0,2.3564954]
[1722190789594,9e-07,68287.0,68286.0,2.0324874]
[1722190789824,9e-07,68287.0,68286.0,2.0604874]
[1722190790057,9e-07,68287.0,68286.0,1.9968874]
[1722190790268,9e-07,68287.0,68286.0,1.6846294]
[1722190790455,9e-07,68287.0,68286.0,0.49372643]
[1722190790653,9e-07,68287.0,68286.0,0.01969353]
[1722190790863,9e-07,68287.0,68286.0,0.02124773]
[1722190791354,0.1449009,68287.0,68286.0,0.01969353]
[1722190791421,0.1449009,68287.0,68286.0,0.03369353]
[1722190791628,0.1449009,68287.0,68286.0,0.028]
[1722190791832,0.2620529,68287.0,68286.0,0.03369353]
[1722190792161,0.2620529,68287.0,68286.0,0.028]
[1722190792466,0.1449009,68287.0,68286.0,0.028]
[1722190792551,0.1449009,68287.0,68286.0,0.10069124]
[1722190792708,0.1449009,68287.0,68286.0,0.02769353]
[1722190793122,0.1449009,68287.0,68286.0,0.02124773]
[1722190793325,0.2620529,68287.0,68286.0,0.00724773]
[1722190793546,0.7306629,68287.0,68286.0,0.01069353]
[1722190793750,0.4963579,68287.0,68286.0,0.005]
[1722190794566,0.1449009,68287.0,68286.0,0.005]
[1722190794790,0.1449009,68287.0,68286.0,0.01069353]
[1722190794931,0.1449009,68287.0,68286.0,0.03369353]
[1722190796602,0.1449009,68287.0,68286.0,0.15084753]
[1722190796768,0.0656009,68287.0,68286.0,0.58584677]
[1722190797134,0.0656009,68287.0,68286.0,0.23438477]
[1722190797454,0.0656009,68287.0,68286.0,0.13369353]
[1722190797658,0.0656009,68287.0,68286.0,0.13524773]
[1722190797971,0.0664309,68287.0,68286.0,0.13524773]
[1722190798173,0.0664309,68287.0,68286.0,0.23593897]
[1722190798360,0.0664309,68287.0,68286.0,0.23438477]
[1722190798564,0.0664309,68287.0,68286.0,0.13369353]
[1722190798788,0.4178879,68287.0,68286.0,0.13369353]
[1722190798986,0.6521929,68287.0,68286.0,0.03369353]
[1722190799189,0.4178879,68287.0,68286.0,0.028]
[1722190799395,0.8864979,68287.0,68286.0,0.01070519]
[1722190799623,0.6521929,68287.0,68286.0,0.005]
[1722190800806,0.6521929,68287.0,68286.0,0.028]
[1722190801030,0.6521929,68287.0,68286.0,0.005]
[1722190801231,1.05874709,68287.0,68286.0,0.005]
[1722190801362,0.940367,68287.0,68286.0,0.005]
[1722190802795,1.174672,68287.0,68286.0,0.005]
[1722190803004,1.33298076,68287.0,68286.0,0.005]
[1722190803655,1.33298076,68287.0,68264.0,0.0015542]
[1722190803656,0.11719,68265.0,68264.0,0.0015542]
[1722190803856,0.35157,68265.0,68264.0,0.0015542]
[1722190804061,0.35157,68265.0,68264.0,0.00669917]
[1722190804339,0.35157,68265.0,68264.0,0.00514497]
[1722190804340,0.38567,68265.0,68264.0,0.00514497]
[1722190804565,0.351576,68264.0,68263.0,0.000913]
[1722190804822,0.58595967,68264.0,68263.0,0.000913]
[1722190805204,0.0793,68266.0,68265.0,0.21788124]
[1722190805491,0.0793,68281.0,68280.0,0.117164]
[1722190805628,0.0656,68283.0,68282.0,0.21785224]
[1722190805828,0.0793,68287.0,68283.0,0.10069124]
[1722190806026,0.0793,68287.0,68284.0,0.1187102]
[1722190806227,0.119149,68289.0,68284.0,0.1187102]
[1722190806228,0.002,68289.0,68288.0,0.21784124]
[1722190806428,0.002,68289.0,68288.0,0.24084124]
[1722190806632,0.002,68289.0,68288.0,0.46314224]
[1722190806831,0.002,68289.0,68288.0,0.70258201]
[1722190807245,0.002,68289.0,68288.0,0.46828101]
[1722190807487,0.002,68289.0,68288.0,0.70258201]
[1722190807648,0.003,68289.0,68288.0,0.71358201]
[1722190807825,0.003,68289.0,68288.0,0.47928101]
[1722190808027,0.003,68289.0,68288.0,0.71358201]
[1722190808257,0.003,68289.0,68288.0,0.71058201]
[1722190808629,0.003,68289.0,68288.0,0.94488301]
[1722190808827,0.003,68289.0,68288.0,0.95288301]
[1722190809036,0.003,68289.0,68288.0,1.05288301]
[1722190809439,0.003,68289.0,68288.0,1.20314258]
[1722190810428,0.003,68289.0,68288.0,1.58354358]
[1722190810837,0.002,68289.0,68288.0,1.62249358]
[1722190811032,0.002,68289.0,68288.0,1.88649358]
[1722190811033,0.003,68289.0,68288.0,1.88649358]
[1722190811294,0.003,68289.0,68288.0,1.87849358]
[1722190811531,0.003,68289.0,68288.0,1.89249358]
[1722190811724,0.003,68289.0,68288.0,1.64249358]
[1722190811931,0.002,68289.0,68288.0,1.62849358]
[1722190812101,0.003,68289.0,68288.0,1.64249358]
[1722190812305,0.003,68289.0,68288.0,1.57854358]
[1722190812686,0.003,68289.0,68288.0,1.59254358]
[1722190813075,0.003,68289.0,68288.0,1.57854358]
[1722190813289,0.003,68289.0,68288.0,1.34424258]
[1722190813585,0.002,68289.0,68288.0,0.54228101]
[1722190813726,0.002,68289.0,68288.0,0.55628101]
[1722190813922,0.002,68289.0,68288.0,0.11913877]
[1722190814125,0.002,68289.0,68288.0,0.01913877]
[1722190814622,0.002,68289.0,68288.0,0.03313877]
[1722190815030,0.314249,68289.0,68288.0,0.00513877]
[1722190815223,0.264249,68289.0,68288.0,0.00513877]
[1722190815358,0.498547,68289.0,68288.0,0.03213877]
[1722190815562,0.498547,68289.0,68288.0,0.013]
[1722190816234,0.264249,68289.0,68288.0,0.013]
[1722190816644,0.732845,68289.0,68288.0,0.018]
[1722190816864,0.732845,68289.0,68288.0,0.00949868]
[1722190817033,0.732845,68289.0,68288.0,0.014]
[1722190817761,0.234309,68286.0,68280.0,0.0015542]
[1722190817902,0.117155,68286.0,68280.0,0.0245542]
[1722190818112,0.117155,68286.0,68281.0,0.08569124]
[1722190818310,0.117156,68285.0,68282.0,0.0245542]
[1722190818468,0.381398,68289.0,68282.0,0.1245542]
[1722190818672,0.117154,68286.0,68282.0,0.21024544]
[1722190818897,0.381398,68289.0,68285.0,0.08569124]
[1722190819183,0.381398,68289.0,68282.0,0.1245542]
[1722190819184,0.002,68289.0,68288.0,0.08569124]
[1722190819391,0.002,68289.0,68288.0,0.69444324]
[1722190819790,0.002,68289.0,68288.0,0.93324292]
[1722190821232,0.002,68289.0,68288.0,1.26754392]
[1722190821428,0.002,68289.0,68288.0,1.43080349]
[1722190822588,0.002,68289.0,68288.0,1.44480349]
[1722190825806,0.002,68289.0,68288.0,1.06024292]
[1722190826012,0.002,68289.0,68288.0,1.09790588]
[1722190826191,0.002,68289.0,68288.0,1.06024292]
[1722190827929,0.002,68289.0,68288.0,0.82594192]
[1722190829429,0.002,68289.0,68288.0,0.74025068]
[1722190829593,0.002,68289.0,68288.0,0.82594192]
[1722190829797,0.002,68289.0,68288.0,0.74116368]
[1722190830044,0.002,68289.0,68288.0,0.82685492]
[1722190830481,0.00283,68289.0,68288.0,0.82685492]
[1722190831772,0.00283,68289.0,68288.0,0.82865391]
[1722190832368,0.00283,68289.0,68288.0,1.06295491]
[1722190832578,0.00283,68289.0,68288.0,1.44751548]
[1722190833449,0.00283,68289.0,68288.0,1.36182424]
[1722190833653,0.00283,68289.0,68288.0,1.53031548]
[1722190834023,0.00283,68289.0,68288.0,1.59241548]
[1722190834185,0.00283,68289.0,68288.0,1.57841548]
[1722190834592,0.00283,68289.0,68288.0,1.62936548]
[1722190834812,0.00283,68289.0,68288.0,1.87766648]
[1722190835011,0.00283,68289.0,68288.0,2.12766648]
[1722190835216,0.00283,68289.0,68288.0,2.24937206]
[1722190835428,0.002,68299.0,68298.0,0.255343]
[1722190835628,0.002,68299.0,68298.0,1.2145976]
[1722190835911,0.002,68299.0,68298.0,1.45514791]
[1722190836059,0.002,68299.0,68298.0,1.63946491]
[1722190836378,0.002,68299.0,68298.0,1.68941491]
[1722190837125,0.002,68299.0,68298.0,1.56433512]
[1722190837971,0.002,68299.0,68298.0,1.19916812]
[1722190838146,0.002,68299.0,68298.0,1.04890855]
[1722190838550,0.002,68299.0,68298.0,1.06290855]
[1722190838804,0.002,68299.0,68298.0,1.04890855]
[1722190839017,0.002,68299.0,68298.0,1.03490855]
[1722190839184,0.002,68299.0,68298.0,1.06290855]
[1722190839395,0.002,68299.0,68298.0,1.04890855]
[1722190839600,0.002,68299.0,68298.0,2.00162678]
[1722190839772,0.002,68299.0,68298.0,2.01562678]
[1722190840396,0.002,68299.0,68298.0,2.49989378]
[1722190840566,0.002,68299.0,68298.0,2.00162678]
[1722190840795,0.002,68299.0,68298.0,1.62828512]
[1722190841555,0.002,68299.0,68298.0,1.61428512]
[1722190841757,0.002,68299.0,68298.0,1.62828512]
[1722190841961,0.002,68299.0,68298.0,1.64228512]
[1722190842323,0.002,68299.0,68298.0,1.59233512]
[1722190843150,0.002,68299.0,68298.0,1.50664388]
[1722190843353,0.002,68299.0,68298.0,1.29596812]
[1722190843790,0.002,68299.0,68298.0,1.14570855]
[1722190845657,0.002,68299.0,68298.0,0.59437455]
[1722190845858,0.002,68299.0,68298.0,0.50868331]
[1722190846060,0.002,68299.0,68298.0,0.74295031]
[1722190846664,0.002,68299.0,68298.0,0.72895031]
[1722190847088,0.002,68299.0,68298.0,0.82864155]
[1722190847920,0.002,68299.0,68298.0,0.71495031]
[1722190848095,0.002,68299.0,68298.0,0.72895031]
[1722190848297,0.002,68299.0,68298.0,0.74295031]
[1722190849461,0.002,68299.0,68298.0,1.06290855]
[1722190849593,0.002,68299.0,68298.0,0.97721731]
[1722190850015,0.002,68299.0,68298.0,1.06290855]
[1722190852553,0.002,68299.0,68298.0,1.12747688]
[1722190852910,0.002,68299.0,68298.0,1.21316812]
[1722190853697,0.002,68299.0,68298.0,1.29526812]
[1722190853896,0.002,68299.0,68298.0,1.20957688]
[1722190854097,0.002,68299.0,68298.0,1.59303512]
[1722190854687,0.002,68299.0,68298.0,1.64298512]
[1722190854964,0.002,68299.0,68298.0,1.62898512]
[1722190855376,0.002,68299.0,68298.0,1.87725212]
[1722190855931,0.002,68299.0,68298.0,1.84925212]
[1722190856173,0.002,68299.0,68298.0,1.86325212]
[1722190856694,0.002,68299.0,68298.0,1.76356088]
[1722190857012,0.002,68299.0,68298.0,1.62898512]
[1722190857409,0.002,68299.0,68298.0,1.64298512]
[1722190857616,0.002,68299.0,68298.0,1.62898512]
[1722190858126,0.002,68299.0,68298.0,1.64298512]
[1722190859647,0.002,68299.0,68298.0,1.55729388]
[1722190859853,0.002,68299.0,68298.0,1.64298512]
[1722190860311,0.002,68299.0,68298.0,1.87898512]
[1722190860553,0.002,68299.0,68298.0,1.62898512]
[1722190860848,0.002,68299.0,68298.0,1.64298512]
[1722190860982,0.002,68299.0,68298.0,1.62898512]
[1722190861184,0.002,68299.0,68298.0,1.64298512]
[1722190861529,0.152366,68299.0,68298.0,1.64298512]
[1722190862376,0.152366,68299.0,68298.0,1.50734388]
[1722190862490,0.152366,68299.0,68298.0,1.44743512]
[1722190862690,0.152366,68299.0,68298.0,1.21316812]
[1722190862897,0.152366,68299.0,68298.0,0.80564155]
[1722190863126,0.152366,68299.0,68298.0,0.71995031]
[1722190863320,0.152366,68299.0,68298.0,0.80564155]
[1722190863549,0.152366,68299.0,68298.0,0.79164155]
[1722190864386,0.152366,68299.0,68298.0,0.80564155]
[1722190864719,0.152366,68299.0,68298.0,0.79164155]
[1722190864925,0.152366,68299.0,68298.0,0.80564155]
[1722190865150,0.152366,68299.0,68298.0,0.81464155]
[1722190865554,0.152366,68299.0,68298.0,0.82864155]
[1722190866052,0.152366,68299.0,68298.0,0.74295031]
[1722190866489,0.152366,68299.0,68298.0,0.72895031]
[1722190866897,0.152366,68299.0,68298.0,0.82864155]
[1722190867094,0.152366,68299.0,68298.0,0.72895031]
[1722190867311,0.152366,68299.0,68298.0,0.74295031]
[1722190867731,0.152366,68299.0,68298.0,0.82864155]
[1722190867875,0.152366,68299.0,68298.0,0.97890112]
[1722190868278,0.152366,68299.0,68298.0,1.21316812]
[1722190870151,0.152366,68299.0,68298.0,1.44743512]
[1722190870495,0.152366,68299.0,68298.0,1.21316812]
[1722190870698,0.152366,68299.0,68298.0,1.49738512]
[1722190871006,0.152366,68299.0,68298.0,1.48338512]
[1722190871212,0.152366,68299.0,68298.0,2.10885212]
[1722190871420,0.152366,68299.0,68298.0,1.88858512]
[1722190871678,0.152366,68299.0,68298.0,1.87458512]
[1722190871875,0.152366,68299.0,68298.0,1.74627359]
[1722190872083,0.152366,68299.0,68298.0,1.76027061]
[1722190872577,0.152366,68299.0,68298.0,1.74627061]
[1722190872785,0.152366,68299.0,68298.0,1.76027061]
[1722190873191,0.152366,68299.0,68298.0,2.01027061]
[1722190873324,0.152366,68299.0,68298.0,1.99627061]
[1722190873557,0.152366,68299.0,68298.0,2.01027061]
[1722190873964,0.152366,68299.0,68298.0,1.74627061]
[1722190874191,0.152366,68299.0,68298.0,1.9945387]
[1722190874422,0.152366,68299.0,68298.0,1.7602717]
[1722190874628,0.152366,68299.0,68298.0,1.88858512]
[1722190874828,0.152366,68299.0,68298.0,2.24453767]
[1722190875027,0.152366,68299.0,68298.0,2.01027067]
[1722190875479,0.152366,68299.0,68298.0,1.76027067]
[1722190876460,0.152366,68299.0,68298.0,1.67457943]
[1722190876659,0.152366,68299.0,68298.0,1.50294388]
[1722190876834,0.152366,68299.0,68298.0,1.52543512]
[1722190883537,0.152366,68299.0,68298.0,1.64712481]
[1722190883761,0.152366,68299.0,68298.0,1.52543512]
[1722190885971,0.152366,68299.0,68298.0,1.64712469]
[1722190886118,0.152366,68299.0,68298.0,1.52543512]
[1722190894785,0.153206,68299.0,68298.0,1.52543512]
[1722190894923,0.153206,68299.0,68298.0,1.82543512]
[1722190896221,0.153206,68299.0,68298.0,2.42185212]
[1722190896593,0.153206,68299.0,68298.0,2.54354031]
[1722190896789,0.153206,68299.0,68298.0,2.54554031]
[1722190896939,0.153206,68299.0,68298.0,2.42385212]
[1722190897141,0.153206,68299.0,68298.0,2.54553579]
[1722190897343,0.153206,68299.0,68298.0,2.42385212]
[1722190897544,0.153206,68299.0,68298.0,2.20784226]
[1722190897756,0.153206,68299.0,68298.0,2.5435335]
[1722190897959,0.153206,68299.0,68298.0,2.5455335]
[1722190898514,0.153206,68299.0,68298.0,2.5435335]
[1722190899094,0.000178,68306.0,68305.0,2.20822024]
[1722190899296,0.00826,68308.0,68307.0,1.45539124]
[1722190899297,0.00114837,68308.0,68307.0,1.45539124]
[1722190899500,0.00114837,68308.0,68307.0,2.08649917]
[1722190899717,0.00114837,68308.0,68307.0,2.32791957]
[1722190899937,0.00114837,68308.0,68307.0,2.66361081]
[1722190900123,0.00114837,68308.0,68307.0,2.32791957]
[1722190900328,0.00114837,68308.0,68307.0,3.36359531]
[1722190900329,3.7e-07,68308.0,68307.0,3.36359531]
[1722190900587,3.7e-07,68308.0,68307.0,2.70747726]
[1722190900898,3.7e-07,68308.0,68307.0,2.70903146]
[1722190901107,3.7e-07,68308.0,68307.0,2.74403146]
[1722190901275,3.7e-07,68308.0,68307.0,2.70057719]
[1722190901428,3.7e-07,68308.0,68307.0,2.46457719]
[1722190902049,3.7e-07,68308.0,68307.0,2.62631719]
[1722190902248,3.7e-07,68308.0,68307.0,2.37631719]
[1722190903306,3.7e-07,68308.0,68307.0,2.62631719]
[1722190903481,3.7e-07,68308.0,68307.0,2.29062595]
[1722190903711,3.7e-07,68308.0,68307.0,2.62476299]
[1722190903889,3.7e-07,68308.0,68307.0,2.62477433]
[1722190904143,3.7e-07,68308.0,68307.0,2.37477433]
[1722190904285,3.7e-07,68308.0,68307.0,2.92599597]
[1722190904502,3.7e-07,68308.0,68307.0,2.67599597]
[1722190904712,3.7e-07,68308.0,68307.0,2.92599597]
[1722190904894,3.7e-07,68308.0,68307.0,2.92477433]
[1722190905445,3.7e-07,68308.0,68307.0,2.92677433]
[1722190906230,3.7e-07,68308.0,68307.0,2.93564805]
[1722190906396,3.7e-07,68308.0,68307.0,2.97585953]
[1722190906620,3.7e-07,68308.0,68307.0,2.9779053]
[1722190906864,0.00199037,68315.0,68314.0,1.97380724]
[1722190907079,0.00199037,68315.0,68314.0,2.97220847]
[1722190907287,0.00199037,68315.0,68314.0,3.09385561]
[1722190907517,0.00199037,68315.0,68314.0,3.19385561]
[1722190907723,0.00199037,68315.0,68314.0,3.52554696]
[1722190908233,0.00199037,68315.0,68314.0,3.4842938]
[1722190908487,0.00199037,68315.0,68314.0,3.55554696]
[1722190909220,0.00199037,68315.0,68314.0,3.30354696]
[1722190909744,0.00199037,68315.0,68314.0,3.2602938]
[1722190909942,0.00199037,68315.0,68314.0,3.20944882]
[1722190910403,0.00199037,68315.0,68314.0,3.08780168]
[1722190910592,0.00199037,68315.0,68314.0,3.20944949]
[1722190910797,0.00199037,68315.0,68314.0,2.96623749]
[1722190911017,0.00199037,68315.0,68314.0,2.96623729]
[1722190911237,0.00199037,68315.0,68314.0,3.20223729]
[1722190911506,0.00199037,68315.0,68314.0,3.23899141]
[1722190911581,0.00199037,68315.0,68314.0,2.96099141]
[1722190911949,0.00199037,68315.0,68314.0,3.19699141]
[1722190912147,0.00199037,68315.0,68314.0,2.93495266]
[1722190912356,0.00199037,68315.0,68314.0,2.93695266]
[1722190912570,0.00067565,68319.0,68318.0,1.81723024]
[1722190912747,0.00067565,68319.0,68318.0,2.46383147]
[1722190912889,0.00067565,68319.0,68318.0,2.56034851]
[1722190913888,0.00067565,68319.0,68318.0,2.36034851]
[1722190914089,0.00067565,68319.0,68318.0,2.32434851]
[1722190914328,0.00067565,68319.0,68318.0,2.33834851]
[1722190914551,0.00067565,68319.0,68318.0,2.31034851]
[1722190914957,0.00067565,68319.0,68318.0,2.33834851]
[1722190915403,0.00067565,68319.0,68318.0,2.58834851]
[1722190915733,0.00067565,68319.0,68318.0,2.25265727]
[1722190916191,0.00067565,68319.0,68318.0,2.33834851]
[1722190916389,0.00067565,68319.0,68318.0,2.57434851]
[1722190916936,0.00067565,68319.0,68318.0,2.57634851]
[1722190917093,0.00067565,68319.0,68318.0,2.22465727]
[1722190917292,0.00067565,68319.0,68318.0,2.57434851]
[1722190917615,0.00067565,68319.0,68318.0,2.32434851]
[1722190917796,0.00067565,68319.0,68318.0,2.05306685]
[1722190918001,0.00067565,68319.0,68318.0,2.03906685]
[1722190918196,0.00067565,68319.0,68318.0,1.70517761]
[1722190918571,0.00067565,68319.0,68318.0,1.73080885]
[1722190919669,0.00067565,68319.0,68318.0,1.71680885]
[1722190919900,0.00067565,68319.0,68318.0,1.96500685]
[1722190920106,0.00067565,68319.0,68318.0,2.21500685]
[1722190920305,0.00067565,68319.0,68318.0,1.96500685]
[1722190920456,0.00067565,68319.0,68318.0,2.33665343]
[1722190920620,0.00067565,68319.0,68318.0,2.18700685]
[1722190920827,0.00067565,68319.0,68318.0,2.33865323]
[1722190921028,0.00067565,68319.0,68318.0,2.33665323]
[1722190921338,0.00067565,68319.0,68318.0,2.32265323]
[1722190921585,0.00067565,68319.0,68318.0,2.33865323]
[1722190922443,0.00067565,68319.0,68318.0,2.3386415]
[1722190923025,0.00067565,68319.0,68318.0,2.3246415]
[1722190923230,0.00067565,68319.0,68318.0,2.3386415]
[1722190923485,0.00067565,68319.0,68318.0,2.5728395]
[1722190923834,0.00067565,68319.0,68318.0,2.5588395]
[1722190923978,0.00067565,68319.0,68318.0,2.5728395]
[1722190924385,0.00067565,68319.0,68318.0,2.3386415]
[1722190925055,0.00067565,68319.0,68318.0,2.5728395]
[1722190925257,0.00067565,68319.0,68318.0,2.3386415]
[1722190926505,0.00067565,68319.0,68318.0,2.5728395]
[1722190926686,0.00067565,68319.0,68318.0,2.00095026]
[1722190926885,0.00151565,68319.0,68318.0,2.00095026]
[1722190927351,0.00151565,68319.0,68318.0,1.63812116]
[1722190927525,0.00151565,68319.0,68318.0,1.54769059]
[1722190927688,0.00151565,68319.0,68318.0,1.42605594]
[1722190928319,0.14781565,68319.0,68318.0,0.69340037]
[1722190928513,0.14781565,68319.0,68318.0,0.62170913]
[1722190928876,0.14781565,68319.0,68318.0,0.59370913]
[1722190929335,0.14781565,68319.0,68318.0,0.60770913]
[1722190929693,0.14781565,68319.0,68318.0,0.59370913]
[1722190929893,0.14781565,68319.0,68318.0,0.67940037]
[1722190930117,0.14781565,68319.0,68318.0,0.69340037]
[1722190930324,0.14781565,68319.0,68318.0,0.79340037]
[1722190930650,0.14781565,68319.0,68318.0,0.77940037]
[1722190930958,0.14781565,68319.0,68318.0,0.70570913]
[1722190931230,0.14781565,68319.0,68318.0,0.74270913]
[1722190931406,0.14781565,68319.0,68318.0,0.81440037]
[1722190931602,0.14781565,68319.0,68318.0,0.72870913]
[1722190931810,0.14781565,68319.0,68318.0,0.74270913]
[1722190932113,0.14781565,68319.0,68318.0,0.73070913]
[1722190932511,0.14781565,68319.0,68318.0,0.74470913]
[1722190932720,0.14781565,68319.0,68318.0,0.83040037]
[1722190932869,0.14781565,68319.0,68318.0,0.81640037]
[1722190933252,0.14781565,68319.0,68318.0,0.83040037]
[1722190935336,0.00151565,68319.0,68318.0,1.21485794]
[1722190936278,0.00151565,68319.0,68318.0,1.20085794]
[1722190936522,0.00151565,68319.0,68318.0,1.21485794]
[1722190936899,0.00151565,68319.0,68318.0,1.44905594]
[1722190937171,0.00151565,68319.0,68318.0,1.62522784]
[1722190937319,0.00151565,68319.0,68318.0,2.2950244]
[1722190937480,0.00151565,68319.0,68318.0,2.32150497]
[1722190937682,0.00151565,68319.0,68318.0,2.33550497]
[1722190937886,0.00151565,68319.0,68318.0,2.32150497]
[1722190938125,0.00151565,68319.0,68318.0,2.0170244]
[1722190938329,0.00151565,68319.0,68318.0,2.2670244]
[1722190938556,0.00151565,68319.0,68318.0,2.15937584]
[1722190938777,0.00151565,68319.0,68318.0,2.30750058]
[1722190938964,0.00151565,68319.0,68318.0,2.01702001]
[1722190939177,0.00151565,68319.0,68318.0,2.03102001]
[1722190939344,0.00151565,68319.0,68318.0,2.04502001]
[1722190939728,0.00151565,68319.0,68318.0,2.03102001]
[1722190940134,0.00151565,68319.0,68318.0,2.04502001]
[1722190940330,0.00151565,68319.0,68318.0,2.05327001]
[1722190941570,0.00683771,68322.0,68321.0,1.314096]
[1722190941775,0.00683771,68322.0,68321.0,2.47387988]